fUSD/lending_fUSD_20250806
["ID","MTS","AMOUNT","RATE_DAILY","PERIOD"]
[377724316,1754514634507,-1000.0,0.00024781,2]
[377724318,1754514634517,-1000.0,0.00024781,2]
[377724319,1754514634527,-1000.0,0.00024781,2]
[377724321,1754514634536,-1000.0,0.00024781,2]
[377724323,1754514634545,-1000.0,0.00024781,2]
[377724325,1754514634555,-1000.0,0.00024781,2]
[377724326,1754514634564,-1000.0,0.00024781,2]
[377724327,1754514634574,-1000.0,0.00024781,2]
[377724328,1754514634583,-1000.0,0.00024781,2]
[377724329,1754514634593,-1000.0,0.00024781,2]
[377724330,1754514634602,-1000.0,0.00024781,2]
[377724331,1754514634612,-1000.0,0.00024781,2]
[377724332,1754514634624,-1000.0,0.00024781,2]
[377724333,1754514634634,-1000.0,0.00024781,2]
[377724334,1754514634643,-1000.0,0.00024781,2]
[377724335,1754514635061,-1000.0,0.00024781,2]
[377724336,1754514635071,-1000.0,0.00024781,2]
[377724337,1754514635080,-1000.0,0.00024781,2]
[377724338,1754514635090,-1000.0,0.00024781,2]
[377724339,1754514635099,-1000.0,0.00024781,2]
[377724340,1754514635109,-1000.0,0.00024781,2]
[377724341,1754514635118,-1000.0,0.00024781,2]
[377724342,1754514635128,-1000.0,0.00024781,2]
[377724343,1754514635138,-1000.0,0.00024781,2]
[377724344,1754514635148,-1000.0,0.00024781,2]
[377724345,1754514635158,-1000.0,0.00024781,2]
[377724346,1754514635167,-1000.0,0.00024781,2]
[377724347,1754514635179,-1000.0,0.00024781,2]
[377724348,1754514635189,-1000.0,0.00024781,2]
[377724349,1754514635199,-1000.0,0.00024781,2]
[377724350,1754514635209,-1000.0,0.00024781,2]
[377724351,1754514635219,-1000.0,0.00024781,2]
[377724352,1754514635228,-1000.0,0.00024781,2]
[377724353,1754514635237,-1000.0,0.00024781,2]
[377724354,1754514635247,-1000.0,0.00024781,2]
[377724355,1754514635257,-1000.0,0.00024781,2]
[377724356,1754514635266,-1000.0,0.00024781,2]
[377724357,1754514635275,-1000.0,0.00024781,2]
[377724358,1754514635284,-1000.0,0.00024781,2]
[377724359,1754514635293,-1000.0,0.00024781,2]
[377724360,1754514635302,-1000.0,0.00024781,2]
[377724361,1754514635312,-1000.0,0.00024781,2]
[377724362,1754514635322,-1000.0,0.00024781,2]
[377724363,1754514635331,-517.8312,0.00024781,2]
[377724364,1754514635340,-4297.89689549,0.00024829,2]
[377724365,1754514635349,-167.34753061,0.00024829,2]
[377724366,1754514635359,-225.0,0.00024863,2]
[377724367,1754514635368,-500.0,0.00024899,2]
[377724368,1754514635378,-3880.53571837,0.000249,2]
[377724369,1754514635387,-1079.20592837,0.00024901,10]
[377724370,1754514635396,-243.03018123,0.00024901,2]
[377724371,1754514635406,-356.57615346,0.00024901,2]
[377724372,1754514635415,-7194.5853682,0.00024902,2]
[377724373,1754514635425,-90317.13891121,0.00024902,2]
[377724374,1754514635439,-36402.86108879,0.00024902,2]
[377724375,1754514635448,-699.9852626,0.00024902,2]
[377724376,1754514635457,-28575.92147495,0.00024902,2]
[377724377,1754514635468,-607.79747743,0.00024902,2]
[377724378,1754514635494,-1223.96851797,0.00024902,2]
[377724379,1754514638298,-306.46953341,0.00024902,2]
[377724380,1754514638417,-1888.0,0.00024902,2]
[377724451,1754514640611,-576.65,0.00024902,2]
[377724452,1754514643548,-1733.50448517,0.00024902,2]
[377724455,1754514828233,159.61,0.00017851,2]
[377724456,1754514842420,1000.0,0.0001967,4]
[377724457,1754514842533,1000.0,0.00019836,4]
[377724461,1754514896406,160.48,0.00019757,36]
[377724463,1754515100467,-151.0,0.00019252,2]
[377724464,1754515100489,-151.0,0.00019254,2]
[377724465,1754515100510,-500.0,0.00019255,2]
[377724466,1754515100530,-151.0,0.00019256,2]
[377724467,1754515100551,-151.0,0.0001926,2]
[377724468,1754515100574,-500.0,0.00019323,2]
[377724469,1754515100597,-159.61,0.00019581,2]
[377724470,1754515100618,-500.0,0.0001967,2]
[377724471,1754515100640,-236.39,0.00019917,2]
[377724472,1754515104884,150.0,0.000301,120]
[377724473,1754515197536,-151.0,0.00019339,2]
[377724474,1754515197564,-151.0,0.00019398,2]
[377724475,1754515197593,-151.0,0.00019427,2]
[377724476,1754515197623,-63.61,0.00019917,2]
[377724477,1754515197651,-500.0,0.0002118,2]
[377724478,1754515197679,-131.39,0.00021222,4]
[377724480,1754515240208,-868.61,0.00021222,4]
[377724481,1754515240235,-500.0,0.00021267,2]
[377724482,1754515240266,-159.61,0.00021312,2]
[377724484,1754515255072,-218.78,0.00021577,2]
[377724485,1754515296230,-281.22,0.00021577,2]
[377724486,1754515296277,-600.0,0.00022273,2]
[377724487,1754515296321,-574.87,0.00022273,2]
[377724488,1754515296364,-159.61,0.00023042,2]
[377724489,1754515296406,-500.0,0.00023344,2]
[377724490,1754515296449,-951.3,0.00023344,4]
[377724492,1754515333573,179.23,0.00013699,2]
[377724493,1754515524671,4810.75322081,0.000175,2]
[377724494,1754515524699,4985.14191304,0.000175,2]
[377724503,1754515718871,8409.44459192,0.000151,2]
[377724506,1754515769719,463.632511,0.0003,120]
[377724507,1754515814662,309.08834066,0.0003,120]
[377724508,1754515817698,153.57,0.00017708,2]
[377724513,1754515831492,-153.57,0.00019534,2]
[377724515,1754515831501,-179.23,0.00020187,2]
[377724517,1754515831511,-500.0,0.00020279,2]
[377724518,1754515831520,-1000.0,0.00020279,4]
[377724519,1754515831530,-500.0,0.00020372,2]
[377724520,1754515831539,-152.81,0.00020924,2]
[377724521,1754515831549,-500.0,0.00021216,2]
[377724522,1754515831558,-153.57,0.00021361,2]
[377724523,1754515831567,-250.0,0.00022206,2]
[377724524,1754515831577,-500.0,0.00022206,2]
[377724525,1754515831586,-300.0,0.00022206,2]
[377724526,1754515831596,-250.0,0.00022206,2]
[377724527,1754515831606,-500.0,0.00022206,2]
[377724528,1754515831615,-1000.0,0.00022206,4]
[377724529,1754515831624,-600.0,0.00022588,2]
[377724530,1754515831636,-600.0,0.00022588,2]
[377724531,1754515831646,-153.57,0.00023187,2]
[377724532,1754515831655,-5699.64,0.00023227,2]
[377724533,1754515831664,-166.66666667,0.00023244,2]
[377724534,1754515831674,-254.0,0.0002331,2]
[377724535,1754515831684,-1000.0,0.00023324,2]
[377724536,1754515831693,-2704.74,0.00023332,2]
[377724537,1754515831702,-1000.0,0.00023336,2]
[377724538,1754515831711,-6685.04,0.00023337,2]
[377724539,1754515831720,-169.69,0.00023349,2]
[377724540,1754515831730,-666.0,0.00023417,3]
[377724541,1754515831739,-154.33,0.0002343,2]
[377724542,1754515831748,-502.3,0.00023438,2]
[377724543,1754515831758,-5000.0,0.00023459,2]
[377724544,1754515831768,-154.78,0.00023461,2]
[377724545,1754515831777,-500.0,0.00023461,2]
[377724546,1754515831785,-5099.33388056,0.00023476,2]
[377724571,1754515832495,-854.98850595,0.00023476,2]
[377724572,1754515832506,-331.16,0.00023476,2]
[377724573,1754515832517,-4322.47780112,0.00023476,2]
[377724574,1754515832602,-900.73425109,0.00023476,2]
[377724575,1754515832615,-831.65049241,0.00023476,2]
[377724576,1754515832627,-11559.65506887,0.00023476,2]
[377724577,1754515832639,-4572.17,0.00023512,2]
[377724579,1754515832648,-154.54,0.00023526,2]
[377724580,1754515832658,-3448.31,0.00023531,2]
[377724582,1754515832668,-154.54,0.00023559,2]
[377724584,1754515832678,-154.54,0.00023593,2]
[377724586,1754515832688,-7569.66,0.00023612,2]
[377724588,1754515832697,-154.54,0.00023626,2]
[377724590,1754515832707,-151.0,0.00023655,2]
[377724592,1754515832717,-600.0,0.00023655,2]
[377724594,1754515832727,-300.0,0.00023655,2]
[377724596,1754515832736,-250.0,0.00023655,2]
[377724598,1754515832745,-300.0,0.00023655,2]
[377724600,1754515832754,-302.48790909,0.00023655,2]
[377724602,1754515832763,-300.0,0.00023655,2]
[377724604,1754515832772,-300.0,0.00023655,2]
[377724606,1754515832781,-300.0,0.00023655,2]
[377724608,1754515832790,-300.0,0.00023655,2]
[377724610,1754515832799,-300.0,0.00023655,2]
[377724612,1754515832808,-300.0,0.00023655,2]
[377724614,1754515832817,-160.0,0.00023655,2]
[377724616,1754515832827,-300.0,0.00023655,2]
[377724618,1754515832836,-300.0,0.00023655,2]
[377724620,1754515832845,-300.0,0.00023655,2]
[377724622,1754515832855,-416.03518578,0.00023655,2]
[377724623,1754515832864,-500.0,0.00023655,2]
[377724625,1754515832873,-500.0,0.00023655,2]
[377724627,1754515832882,-500.0,0.00023655,2]
[377724629,1754515832890,-500.0,0.00023655,2]
[377724631,1754515832899,-500.0,0.00023655,2]
[377724633,1754515832909,-500.0,0.00023655,2]
[377724635,1754515832918,-500.0,0.00023655,2]
[377724637,1754515832928,-500.0,0.00023655,2]
[377724639,1754515832937,-500.0,0.00023655,2]
[377724641,1754515832946,-500.0,0.00023655,2]
[377724644,1754515833103,-500.0,0.00023655,2]
[377724645,1754515833113,-500.0,0.00023655,2]
[377724646,1754515833122,-500.0,0.00023655,2]
[377724647,1754515833131,-500.0,0.00023655,2]
[377724648,1754515833141,-500.0,0.00023655,2]
[377724649,1754515833150,-500.0,0.00023655,2]
[377724650,1754515833158,-451.13677774,0.00023655,2]
[377724651,1754515833167,-500.0,0.00023655,2]
[377724652,1754515833175,-500.0,0.00023655,2]
[377724653,1754515833182,-151.0,0.00023655,2]
[377724654,1754515833191,-277.35679052,0.00023655,2]
[377724655,1754515833200,-250.0,0.00023655,2]
[377724656,1754515833208,-250.0,0.00023655,2]
[377724657,1754515833215,-209.40437684,0.00023655,2]
[377724658,1754515833221,-250.0,0.00023655,2]
[377724659,1754515833229,-250.0,0.00023655,2]
[377724660,1754515833236,-250.0,0.00023655,2]
[377724661,1754515833244,-250.0,0.00023655,2]
[377724662,1754515833252,-250.0,0.00023655,2]
[377724663,1754515833261,-250.0,0.00023655,2]
[377724664,1754515833270,-250.0,0.00023655,2]
[377724665,1754515833278,-250.0,0.00023655,2]
[377724666,1754515833285,-154.54,0.0002366,2]
[377724667,1754515833292,-165.66,0.00023676,2]
[377724668,1754515833299,-1078.49,0.00023687,2]
[377724669,1754515833307,-154.54,0.00023694,2]
[377724670,1754515833313,-167.78,0.00023696,2]
[377724671,1754515833320,-154.54,0.00023727,2]
[377724672,1754515833329,-154.54,0.00023761,2]
[377724673,1754515833340,-5000.0,0.00024,5]
[377724674,1754515833349,-714.0,0.000241,2]
[377724675,1754515833358,-309.08834066,0.00024158,2]
[377724676,1754515833367,-275.48139095,0.00024203,2]
[377724677,1754515833376,-600.0,0.00024203,2]
[377724678,1754515833385,-151.0,0.00024203,2]
[377724679,1754515833394,-150.0,0.00024509,2]
[377724680,1754515833404,-692.93331467,0.00024567,2]
[377724681,1754515833412,-150.0,0.00024574,2]
[377724682,1754515833422,-150.0,0.00024574,2]
[377724683,1754515833432,-1000.0,0.00024581,2]
[377724684,1754515833441,-150.0,0.00024587,2]
[377724685,1754515833451,-150.0,0.00024588,2]
[377724686,1754515833460,-1000.0,0.00024621,2]
[377724687,1754515833469,-1000.0,0.00024622,2]
[377724688,1754515833478,-150.0,0.00024634,2]
[377724689,1754515833487,-150.0,0.00024651,2]
[377724690,1754515833497,-150.0,0.00024653,2]
[377724691,1754515833506,-150.0,0.00024661,2]
[377724692,1754515833515,-150.0,0.00024675,2]
[377724693,1754515833525,-150.0,0.00024675,2]
[377724694,1754515833534,-150.0,0.00024719,2]
[377724695,1754515833543,-300.0,0.00024726,2]
[377724696,1754515833552,-150.0,0.0002473,2]
[377724697,1754515833562,-150.0,0.00024743,2]
[377724698,1754515833571,-150.0,0.0002475,2]
[377724699,1754515833580,-600.0,0.00024751,2]
[377724700,1754515833590,-151.0,0.00024751,2]
[377724701,1754515833599,-150.0,0.00024757,2]
[377724702,1754515833608,-2730.75551523,0.00024812,2]
[377724703,1754515833618,-165.12359307,0.00024812,2]
[377724704,1754515833627,-232.46624811,0.00024812,2]
[377724705,1754515833637,-1442.82527523,0.00024816,2]
[377724706,1754515833675,-2751.88560281,0.00024816,2]
[377724707,1754515833694,-484.68174308,0.00024816,2]
[377724714,1754515837400,-858.0346697,0.00024816,2]
[377724715,1754515837510,-949.29849257,0.00024816,2]
[377724892,1754515839448,-3091.99497551,0.00024816,2]
[377724935,1754515839674,-311.86127415,0.00024816,2]
[377724938,1754515839691,-894.525,0.00024816,2]
[377724943,1754515839710,-20703.89296695,0.00024816,2]
[377724946,1754515839722,-150.0,0.0002482,2]
[377724949,1754515839732,-1126.0982972,0.00024882,2]
[377724952,1754515839742,-3868.10720595,0.00024889,2]
[377724955,1754515839751,-256.819,0.000249,8]
[377724958,1754515839761,-3812.27638622,0.000249,2]
[377724961,1754515839771,-151.0,0.00024902,7]
[377724964,1754515839780,-151.0,0.00024902,7]
[377724967,1754515839790,-200.0,0.00024902,2]
[377724970,1754515839799,-151.0,0.00024902,7]
[377724973,1754515839809,-151.0,0.00024902,7]
[377724976,1754515839819,-14754.851726,0.00024902,2]
[377724979,1754515839828,-1020.18494585,0.00024905,10]
[377724982,1754515839838,-151.382382,0.00024906,7]
[377724985,1754515839847,-184.54388183,0.00024906,2]
[377724988,1754515839856,-85420.7406892,0.00024912,2]
[377724991,1754515839866,-3618.257155,0.00024912,2]
[377724994,1754515839877,-151.0,0.00024912,7]
[377724998,1754515839887,-170.12112686,0.00024944,2]
[377725001,1754515839896,-249.60330742,0.00024944,2]
[377725004,1754515839906,-54611.5683333,0.00024945,2]
[377725007,1754515839915,-4140.3226666,0.00024945,2]
[377725010,1754515839925,-151.0,0.00024962,7]
[377725013,1754515839935,-151.0,0.00024962,7]
[377725016,1754515839945,-151.0,0.00024962,7]
[377725019,1754515839954,-151.0,0.00024962,7]
[377725022,1754515839964,-14754.851726,0.00024973,2]
[377725025,1754515839974,-151.0,0.00024983,7]
[377725028,1754515839983,-151.0,0.00024983,7]
[377725031,1754515839994,-28278.95743362,0.00024983,2]
[377725034,1754515840003,-1050.3052954,0.00024989,10]
[377725037,1754515840012,-151.0,0.0002499,7]
[377725040,1754515840022,-151.0,0.0002499,7]
[377725043,1754515840031,-19673.1356346,0.0002499,2]
[377725045,1754515840041,-184.488481,0.0002499,7]
[377725048,1754515840051,-250.694205,0.0002499,7]
[377725052,1754515840061,-154.33,0.00024992,2]
[377725055,1754515840071,-21256.60704919,0.00025,2]
[377725059,1754515840082,-19313.97942265,0.00025,2]
[377725062,1754515840091,-151.0,0.00025,7]
[377725065,1754515840101,-151.0,0.00025,7]
[377725068,1754515840110,-151.0,0.00025,7]
[377725071,1754515840120,-151.0,0.00025,7]
[377725074,1754515840129,-151.0,0.00025,7]
[377725077,1754515840138,-4918.28390865,0.00025,2]
[377725080,1754515840149,-12000.0,0.0002501,2]
[377725083,1754515840159,-153.57,0.00025014,2]
[377725086,1754515840168,-160.0,0.00025024,2]
[377725089,1754515840177,-431.42848765,0.00025024,2]
[377725092,1754515840187,-287.61899177,0.00025024,2]
[377725094,1754515840197,-200.0,0.00025151,2]
[377725096,1754515840206,-296.01840002,0.00025231,2]
[377725098,1754515840215,-699.0,0.0002528,2]
[377725100,1754515840225,-4918.28390865,0.00025289,2]
[377725102,1754515840234,-600.0,0.00025299,2]
[377725104,1754515840243,-151.0,0.00025299,2]
[377725106,1754515840253,-957.0,0.000254,3]
[377725108,1754515840262,-200.0,0.00025403,2]
[377725110,1754515840271,-232.46624794,0.00025448,2]
[377725112,1754515840282,-14754.851726,0.00025607,2]
[377725114,1754515840291,-200.0,0.00025657,2]
[377725116,1754515840301,-5511.0,0.000258,5]
[377725118,1754515840310,-600.0,0.00025847,2]
[377725120,1754515840320,-151.0,0.00025847,2]
[377725122,1754515840330,-244.43863241,0.00026,2]
[377725124,1754515840340,-232.46624794,0.00026084,2]
[377725126,1754515840350,-4918.28390865,0.0002612,2]
[377725128,1754515840359,-181.467016,0.0002613,7]
[377725130,1754515840368,-155.010207,0.0002613,7]
[377725132,1754515840378,-200.0,0.0002613,2]
[377725134,1754515840387,-200.0,0.0002613,2]
[377725136,1754515840396,-200.0,0.0002613,2]
[377725138,1754515840405,-200.0,0.0002613,2]
[377725140,1754515840414,-200.0,0.0002613,2]
[377725142,1754515840423,-200.0,0.0002613,2]
[377725144,1754515840433,-200.0,0.0002613,2]
[377725146,1754515840443,-200.0,0.0002613,2]
[377725148,1754515840452,-200.0,0.0002613,2]
[377725150,1754515840461,-200.0,0.0002613,2]
[377725152,1754515840470,-200.0,0.0002613,2]
[377725154,1754515840480,-200.0,0.0002613,2]
[377725156,1754515840489,-200.0,0.0002613,2]
[377725158,1754515840498,-200.0,0.0002613,2]
[377725160,1754515840509,-200.0,0.0002613,2]
[377725162,1754515840518,-200.0,0.0002613,2]
[377725164,1754515840527,-200.0,0.0002613,2]
[377725166,1754515840537,-200.0,0.0002613,2]
[377725168,1754515840546,-200.0,0.0002613,2]
[377725170,1754515840556,-200.0,0.0002613,2]
[377725172,1754515840565,-200.0,0.0002613,2]
[377725174,1754515840574,-200.0,0.0002613,2]
[377725176,1754515840584,-200.0,0.0002613,2]
[377725178,1754515840593,-200.0,0.0002613,2]
[377725180,1754515840603,-200.0,0.0002613,2]
[377725182,1754515840612,-200.0,0.0002613,2]
[377725184,1754515840622,-200.0,0.0002613,2]
[377725186,1754515840631,-188.804725,0.0002613,2]
[377725188,1754515840643,-9836.5678173,0.0002613,2]
[377725190,1754515840652,-19217.2602645,0.0002614,2]
[377725192,1754515840662,-151.0,0.0002614,7]
[377725194,1754515840671,-151.0,0.0002614,7]
[377725196,1754515840680,-151.0,0.0002614,7]
[377725198,1754515840691,-151.0,0.0002614,7]
[377725200,1754515840700,-151.0,0.0002614,7]
[377725202,1754515840710,-2730.75551519,0.00026155,2]
[377725204,1754515840719,-500.0,0.00026173,2]
[377725206,1754515840730,-500.46973082,0.00026173,2]
[377725208,1754515840740,-500.0,0.00026173,2]
[377725210,1754515840749,-500.0,0.00026173,2]
[377725212,1754515840759,-500.0,0.00026173,2]
[377725214,1754515840768,-1084.0,0.00026198,2]
[377725216,1754515840778,-3868.10720591,0.00026224,2]
[377725218,1754515840788,-1000.0,0.00026239,2]
[377725220,1754515840798,-4918.28390865,0.00026383,2]
[377725221,1754515840808,-160.0,0.00026393,2]
[377725222,1754515840818,-447.3913417,0.00026393,2]
[377725223,1754515840828,-298.26089446,0.00026393,2]
[377725224,1754515840837,-217.15233878,0.00026394,2]
[377725225,1754515840847,-600.0,0.00026395,2]
[377725226,1754515840857,-151.0,0.00026395,2]
[377725227,1754515840866,-685.0,0.0002647,2]
[377725228,1754515840876,-3613.9655954,0.0002649,2]
[377725229,1754515840885,-6181.06098041,0.000265,2]
[377725230,1754515840894,-154.33,0.00026554,2]
[377725231,1754515840904,-600.0,0.00026649,2]
[377725232,1754515840914,-600.0,0.00026649,2]
[377725233,1754515840924,-162.61,0.00026663,2]
[377725234,1754515840934,-179.23,0.00026676,2]
[377725235,1754515840943,-1000.0,0.00026721,2]
[377725236,1754515840953,-500.28707117,0.00026721,2]
[377725237,1754515840962,-232.46624794,0.00026721,2]
[377725238,1754515840972,-4918.28390865,0.00026805,2]
[377725240,1754515840982,-153.57,0.0002684,2]
[377725242,1754515840991,-600.0,0.00026943,2]
[377725244,1754515841001,-151.0,0.00026943,2]
[377725246,1754515841011,-1504.45544638,0.00027268,2]
[377725248,1754515841020,-232.46624794,0.00027357,2]
[377725250,1754515841029,-3613.9655954,0.00027363,2]
[377725252,1754515841039,-189.001177,0.0002737,7]
[377725254,1754515841048,-151.0,0.0002737,7]
[377725256,1754515841057,-500.0,0.00027373,2]
[377725258,1754515841067,-501.72787283,0.00027373,2]
[377725260,1754515841076,-500.0,0.00027373,2]
[377725262,1754515841085,-500.0,0.00027373,2]
[377725264,1754515841095,-500.0,0.00027373,2]
[377725266,1754515841105,-300.0,0.0002738,3]
[377725268,1754515841115,-300.892507,0.0002738,3]
[377725270,1754515841124,-151.0,0.0002738,7]
[377725272,1754515841133,-9836.5678173,0.0002738,2]
[377725274,1754515841142,-7227.9311908,0.0002738,2]
[377725276,1754515841151,-22169.53671258,0.0002739,2]
[377725278,1754515841161,-500.0,0.00027397,2]
[377725280,1754515841170,-538.54977786,0.00027397,2]
[377725282,1754515841180,-3613.9655954,0.00027419,2]
[377725284,1754515841191,-4918.28390865,0.00027429,2]
[377725286,1754515841201,-3812.27638618,0.00027439,7]
[377725288,1754515841212,-254.66,0.00027452,2]
[377725290,1754515841222,-500.0,0.00027473,5]
[377725292,1754515841232,-4918.28390865,0.00027488,2]
[377725294,1754515841242,-3613.9655954,0.00027488,2]
[377725296,1754515841252,-600.0,0.00027491,2]
[377725298,1754515841262,-151.0,0.00027491,2]
[377725300,1754515841272,-2730.75551519,0.00027498,2]
[377725302,1754515841282,-169.621267,0.00027536,7]
[377725304,1754515841292,-151.0,0.00027547,7]
[377725306,1754515841301,-3868.10720591,0.00027558,2]
[377725308,1754515841311,-4918.28390865,0.00027567,2]
[377725310,1754515841321,-1084.0,0.00027577,5]
[377725312,1754515841330,-3613.9655954,0.0002764,2]
[377725314,1754515841339,-671.0,0.0002765,2]
[377725316,1754515841349,-160.0,0.00027762,2]
[377725318,1754515841358,-463.94482134,0.00027762,2]
[377725320,1754515841367,-309.29654756,0.00027762,2]
[377725322,1754515841377,-1131.28318218,0.00027921,5]
[377725324,1754515841386,-232.46624794,0.00027993,2]
[377725326,1754515841395,-600.0,0.00028039,2]
[377725328,1754515841404,-151.0,0.00028039,2]
[377725330,1754515841414,-154.33,0.00028116,2]
[377725332,1754515841423,-4918.28390865,0.00028152,2]
[377725334,1754515841434,-500.0,0.00028162,5]
[377725336,1754515841444,-500.0,0.00028162,5]
[377725338,1754515841454,-167.99,0.00028172,2]
[377725340,1754515841463,-168.94,0.00028184,2]
[377725342,1754515841472,-600.0,0.00028309,2]
[377725354,1754515841482,-600.0,0.00028309,2]
[377725356,1754515841591,-162.61,0.00028337,2]
[377725358,1754515841607,-3613.9655954,0.00028404,2]
[377725360,1754515841617,-457.43778519,0.00028414,2]
[377725362,1754515841630,-842.03384774,0.00028454,2]
[377725364,1754515841641,-211.52696026,0.00028484,2]
[377725366,1754515841650,-160.0,0.00028484,2]
[377725368,1754515841660,-151.0,0.00028552,7]
[377725370,1754515841674,-4918.28390865,0.00028558,2]
[377725372,1754515841685,-600.0,0.00028587,2]
[377725374,1754515841695,-151.0,0.00028587,2]
[377725376,1754515841705,-232.46624794,0.00028629,2]
[377725378,1754515841720,-153.57,0.00028667,2]
[377725380,1754515841729,-456.5102112,0.00028709,5]
[377725382,1754515841738,-2318.30990084,0.0002882,2]
[377725394,1754515841845,-988.20519628,0.0002882,2]
[377725396,1754515841857,-307.45049828,0.0002882,2]
[377725398,1754515841866,-277.65950172,0.0002883,2]
[377725402,1754515841890,-378.34049828,0.0002883,2]
[377725404,1754515841900,-2730.75551519,0.00028841,2]
[377725406,1754515841909,-501.85662329,0.00028879,5]
[377725408,1754515841919,-350.56510121,0.00028879,5]
[377725410,1754515841929,-523.96563938,0.00028879,5]
[377725414,1754515841963,-30.13100128,0.00028879,5]
[377725416,1754515841973,-4918.28390865,0.00028881,2]
[377725418,1754515841982,-1704.04970312,0.00028883,2]
[377725576,1754515843484,-1888.0,0.00027919,3]
[377725578,1754515843494,-1909.91589228,0.00028883,2]
[377725580,1754515843503,-142.11129024,0.00028893,2]
[377725782,1754515845610,-1169.0,0.00028419,3]
[377725814,1754515845901,-719.0,0.00028419,3]
[377725816,1754515845911,-3725.99591567,0.00028893,2]
[377725818,1754515845920,-281.36792101,0.00029,2]
[377725827,1754515845990,-1076.2800054,0.00029,2]
[377725829,1754515846000,-140.71244882,0.00029,2]
[377725831,1754515846010,-183.33333332,0.0002901,2]
[377725833,1754515846019,-1084.0,0.00029028,5]
[377725835,1754515846029,-4918.28390865,0.00029101,2]
[377725837,1754515846038,-160.0,0.00029131,2]
[377725839,1754515846050,-481.11077973,0.00029131,2]
[377725841,1754515846059,-320.74051982,0.00029131,2]
[377725843,1754515846068,-225.18697532,0.00029133,2]
[377725845,1754515846078,-600.0,0.00029135,2]
[377725847,1754515846088,-151.0,0.00029135,2]
[377725849,1754515846097,-3571.63203434,0.00029145,2]
[377727900,1754515869987,154.54417034,0.0003,120]
[377727911,1754515922575,500.0,0.00028219,120]
[377727912,1754515922650,500.0,0.00028757,120]
[377727913,1754515923476,1000.0,0.00028219,120]
[377727914,1754515923556,1000.0,0.00028757,120]
[377727918,1754516042498,500.0,0.0002747,120]
[377727919,1754516042565,500.0,0.00026246,120]
[377727920,1754516042634,500.0,0.00027744,120]
[377727922,1754516164087,500.0,0.0002747,120]
[377727923,1754516171159,500.0,0.00025609,120]
[377727924,1754516171286,500.0,0.00026722,120]
[377727927,1754516282897,500.0,0.0002747,120]
[377727928,1754516282967,500.0,0.00025609,120]
[377727931,1754516402996,500.0,0.0002747,120]
[377727936,1754516524045,185.45,0.00013699,2]
[377727944,1754516810834,164.83519021,0.0003013,120]
[377727987,1754517032353,-494.42999998,0.00020187,2]
[377727988,1754517032362,-1000.0,0.00020187,4]
[377727989,1754517032372,-185.45,0.00020187,2]
[377727990,1754517032381,-157.89,0.00022185,2]
[377727991,1754517032390,-1000.0,0.00022206,4]
[377727992,1754517032399,-663.21352023,0.00022206,4]
[377727999,1754517032521,-336.78647977,0.00022206,4]
[377728001,1754517032530,-418.44883264,0.00024519,2]
[377728004,1754517032549,-90.55116736,0.00024519,2]
[377728006,1754517032558,-157.89,0.00024714,2]
[377728008,1754517032567,-176.80899168,0.00024824,3]
[377728011,1754517032578,-1153.65769635,0.00024824,3]
[377728016,1754517032623,-169.53331197,0.00024824,3]
[377728017,1754517032633,-160.8,0.000249,2]